fUST/lending_fUST_20240416
["ID","MTS","AMOUNT","RATE_DAILY","PERIOD"]
[322696516,1713221458555,-329.0166,0.00037184,2]
[322696517,1713221458564,-160.149708,0.00037184,2]
[322696518,1713221458574,-2216.186679,0.00037184,2]
[322696519,1713221458583,-2139.536804,0.00037184,2]
[322696520,1713221458592,-4909.12,0.0003726,7]
[322696521,1713221458602,-4851.89,0.0003726,7]
[322696522,1713221458610,-200.0,0.00037289,120]
[322696523,1713221458620,-11571.93062724,0.000373,2]
[322696524,1713221458629,-41860.89579221,0.0003742,2]
[322696525,1713221458638,-3000.0,0.000375,14]
[322696526,1713221458648,-3000.0,0.0003751,14]
[322696527,1713221458657,-3000.0,0.0003752,14]
[322696528,1713221458666,-3000.0,0.0003753,14]
[322696529,1713221458679,-4909.12,0.00037534,7]
[322696530,1713221458688,-4851.89,0.00037534,7]
[322696531,1713221458697,-3000.0,0.0003754,14]
[322696532,1713221458706,-29789.87905512,0.0003755,3]
[322696533,1713221458716,-151.0,0.0003755,2]
[322696534,1713221458725,-3000.0,0.0003755,14]
[322696535,1713221458734,-539.563969,0.0003755,2]
[322696536,1713221458743,-539.563969,0.0003755,2]
[322696537,1713221458753,-151.0,0.0003755,2]
[322696538,1713221458763,-1686.979263,0.0003755,2]
[322696539,1713221458772,-1686.979263,0.0003755,2]
[322696540,1713221458782,-151.0,0.0003755,2]
[322696541,1713221458791,-151.0,0.0003755,2]
[322696542,1713221458800,-151.0,0.0003755,2]
[322696543,1713221458809,-162.747607,0.0003755,2]
[322696544,1713221458818,-162.747607,0.0003755,2]
[322696545,1713221458827,-151.0,0.0003755,2]
[322696546,1713221458836,-151.0,0.0003755,2]
[322696547,1713221458845,-1125.288997,0.0003755,2]
[322696548,1713221458855,-1125.288997,0.0003755,2]
[322696549,1713221458864,-438.553937,0.0003755,2]
[322696550,1713221458872,-438.553937,0.0003755,2]
[322696551,1713221458882,-208.586023,0.0003755,2]
[322696552,1713221458891,-208.586023,0.0003755,2]
[322696553,1713221458900,-151.0,0.0003755,2]
[322696554,1713221458909,-151.0,0.0003755,2]
[322696555,1713221458918,-969.937932,0.0003755,2]
[322696556,1713221458928,-969.937932,0.0003755,2]
[322696557,1713221458939,-3000.0,0.0003756,14]
[322696558,1713221458948,-3000.0,0.0003757,14]
[322696559,1713221458958,-3000.0,0.0003758,14]
[322696560,1713221458967,-3000.0,0.0003759,14]
[322696561,1713221458976,-3000.0,0.000376,14]
[322696562,1713221458986,-3000.0,0.0003761,14]
[322696563,1713221458995,-3000.0,0.0003762,14]
[322696564,1713221459004,-6250.361279,0.0003762,2]
[322696565,1713221459013,-6250.36128,0.0003762,2]
[322696566,1713221459023,-3000.0,0.0003763,14]
[322696567,1713221459032,-3000.0,0.0003764,14]
[322696568,1713221459041,-1841.779149,0.00037648,2]
[322696569,1713221459050,-1645.082998,0.00037648,2]
[322696570,1713221459059,-368.35583,0.00037648,2]
[322696571,1713221459068,-329.0166,0.00037648,2]
[322696572,1713221459077,-411.09501114,0.00037648,2]
[322696573,1713221459157,-1805.09166786,0.00037648,2]
[322696574,1713221459166,-2139.536804,0.00037648,2]
[322696575,1713221459175,-3000.0,0.0003765,15]
[322696576,1713221459184,-3000.0,0.0003766,15]
[322696577,1713221459194,-3000.0,0.0003767,15]
[322696578,1713221459203,-1893.60634571,0.0003768,15]
[322696579,1713221459375,-602.08061333,0.00024791,2]
[322696580,1713221459715,-351.6573209,0.00024791,2]
[322696581,1713221459724,-309.58206499,0.0003,4]
[322696582,1713221459733,-246.26751876,0.00030136,2]
[322696590,1713221511416,3980.69778068,0.00024692,2]
[322696603,1713222150671,19000.0,0.00018256,2]
[322696604,1713222150702,5900.0,0.00018256,2]
[322696605,1713222183579,284.86615324,0.00018256,2]
[322696606,1713222189556,1246.3466701,0.00018148,2]
[322696607,1713222203577,284.86615324,0.00018256,2]
[322696608,1713222221584,284.86615324,0.00018256,2]
[322696609,1713222237582,214.70278329,0.00018256,2]
[322696610,1713222451044,671.7735056,0.00017872,2]
[322696612,1713222514618,1479.763996,0.00017863,2]
[322696613,1713222546185,-193.29068397,0.00018852,2]
[322696614,1713222546205,-185.88478385,0.00018853,2]
[322696615,1713222546227,-300.0,0.00018853,2]
[322696616,1713222546248,-172.97629238,0.00018853,2]
[322696617,1713222546268,-154.87609912,0.00018853,2]
[322696618,1713222546288,-467.57706084,0.00018853,2]
[322696619,1713222546307,-2619.93201651,0.00018853,2]
[322696620,1713222546333,-207.55380091,0.00018853,2]
[322696621,1713222546353,-154.87609912,0.00018853,2]
[322696622,1713222546372,-1949.23146793,0.00018853,2]
[322696623,1713222562112,-59063.66666477,0.0001885,2]
[322696624,1713222562133,-2124.60141988,0.0001885,2]
[322696625,1713222562154,-154.87609912,0.0001885,2]
[322696626,1713222562174,-154.87609912,0.0001885,2]
[322696627,1713222562193,-7855.0254148,0.00018851,2]
[322696628,1713222562213,-1309.46372676,0.00018851,2]
[322696629,1713222562233,-525.49067281,0.00018851,2]
[322696630,1713222562252,-602.31021043,0.00018851,2]
[322696631,1713222562271,-1487.92182193,0.00018852,2]
[322696632,1713222562291,-519.0311523,0.00018852,2]
[322696633,1713222562311,-1672.97193962,0.00018852,2]
[322696634,1713222562330,-282.75395615,0.00018852,2]
[322696635,1713222562352,-1933.58973003,0.00018852,2]
[322696636,1713222562370,-1088.76018233,0.00018852,2]
[322696637,1713222562390,-1346.27478816,0.00018853,2]
[322696638,1713222562409,-888.05887897,0.00018853,2]
[322696639,1713222562428,-470.72269089,0.00018853,2]
[322696640,1713222562447,-300.0,0.00018853,2]
[322696641,1713222562467,-937.42642571,0.00018854,2]
[322696642,1713222562486,-361.42917162,0.00018854,2]
[322696643,1713222562505,-211.7214804,0.00018854,2]
[322696644,1713222562525,-154.87609912,0.00018854,2]
[322696645,1713222562545,-2583.74745148,0.00018854,2]
[322696646,1713222562563,-157.4992408,0.00018854,2]
[322696647,1713222562583,-236.30551311,0.00018855,2]
[322696648,1713222562604,-154.87609912,0.00018855,2]
[322696649,1713222562624,-154.87609912,0.00018855,2]
[322696650,1713222562642,-225.96730159,0.00018855,2]
[322696651,1713222562662,-216.09314923,0.00018855,2]
[322696652,1713222562682,-2007.62821039,0.00018855,2]
[322696653,1713222562700,-154.87609912,0.00018856,2]
[322696654,1713222562720,-473.94455587,0.00018856,2]
[322696655,1713222562740,-154.87609912,0.00018856,2]
[322696656,1713222562760,-2096.03028856,0.00018856,2]
[322696657,1713222562779,-880.8735514,0.00018857,2]
[322696658,1713222562798,-156.77861177,0.00018857,2]
[322696659,1713222562817,-154.87609912,0.00018857,2]
[322696660,1713222562837,-538.98088948,0.00018857,2]
[322696661,1713222562857,-193.29068397,0.00018858,2]
[322696662,1713222562877,-304.24078065,0.00018859,2]
[322696663,1713222562896,-519.0311523,0.00018861,2]
[322696664,1713222562916,-14583.01969181,0.00018869,2]
[322696665,1713222562936,-154.35921712,0.00018875,2]
[322696666,1713222562955,-2599.68151758,0.000189,2]
[322696667,1713222562975,-622.68704859,0.00018983,2]
[322696668,1713222563000,-622.68704859,0.00018983,2]
[322696669,1713222563019,-172.89883231,0.00018997,2]
[322696670,1713222563041,-244.05144968,0.00018997,2]
[322696671,1713222563061,-1000.0,0.00019,2]
[322696672,1713222563082,-8000.0,0.0002,2]
[322696673,1713222563103,-237.82003824,0.0002,2]
[322696674,1713222563123,-199.14035953,0.0002,2]
[322696675,1713222563143,-420.0,0.00020553,2]
[322696676,1713222563163,-168.365377,0.00020638,2]
[322696677,1713222563183,-420.0,0.00020738,2]
[322696678,1713222563203,-154.35921712,0.00021665,2]
[322696679,1713222563222,-587.0,0.00022406,2]
[322696680,1713222563242,-587.0,0.00022812,2]
[322696681,1713222563380,-2599.68151758,0.000239,2]
[322696682,1713222563401,-823.0,0.00024426,2]
[322696683,1713222563422,-154.35921712,0.00024455,2]
[322696684,1713222563442,-1355.53989206,0.0002449,2]
[322696685,1713222563461,-161.77699218,0.00024589,2]
[322696686,1713222563481,-158.76974363,0.00024589,2]
[322696687,1713222563501,-9008.08079853,0.00024589,2]
[322696688,1713222563521,-917.01919934,0.0002459,2]
[322696689,1713222563541,-3002.4982096,0.00024592,2]
[322696690,1713222563560,-200.0,0.00024658,2]
[322696691,1713222563579,-200.0,0.00024658,15]
[322696692,1713222563601,-280.0,0.00024658,2]
[322696693,1713222563620,-24723.00935897,0.00024692,2]
[322696694,1713222574109,-519.0311523,0.00018849,2]
[322696695,1713222574130,-453.70601522,0.0001885,2]
[322696696,1713222574157,-3287.03986956,0.0001885,2]
[322696697,1713222574177,-563.61476546,0.0001885,2]
[322696698,1713222574197,-185.88478385,0.00018858,2]
[322696699,1713222574216,-207.55380091,0.00018858,2]
[322696700,1713222575126,154.87609912,0.00024107,2]
[322696701,1713222591131,287.26270478,0.00024106,2]
[322696807,1713222638228,-22.25746238,0.00024106,2]
[322696809,1713222638237,-300.0,0.00024691,2]
[322696811,1713222638246,-300.0,0.00024691,2]
[322696813,1713222638255,-10.4962759,0.00024692,2]
[322696847,1713222638521,-14397.77652455,0.00024692,2]
[322696849,1713222638531,-1986.56490769,0.00024692,2]
[322696851,1713222638540,-172.63028826,0.000249,2]
[322696853,1713222638549,-172.63028826,0.000249,2]
[322696855,1713222638558,-156.98200501,0.00025,2]
[322696857,1713222638567,-1355.53989205,0.00025945,2]
[322696859,1713222638576,-24900.0,0.00026318,2]
[322696861,1713222638585,-420.0,0.00026757,2]
[322696863,1713222638594,-1479.763996,0.00026795,2]
[322696865,1713222638603,-1114.95070659,0.0002706,3]
[322696867,1713222638612,-420.0,0.0002716,2]
[322696869,1713222638621,-154.35921712,0.00027245,2]
[322696871,1713222638630,-783.63141595,0.00027377,2]
[322696873,1713222638639,-183.376209,0.00027397,2]
[322696875,1713222638648,-166.666666,0.00027397,2]
[322696877,1713222638658,-1355.53989205,0.000274,2]
[322696879,1713222638699,-461.52109338,0.00027405,2]
[322696881,1713222638708,-309.56660676,0.00027405,2]
[322696883,1713222638717,-309.56660676,0.00027405,2]
[322696885,1713222638727,-2448.39857819,0.00027405,2]
[322696887,1713222638736,-309.56660676,0.00027405,2]
[322696889,1713222638745,-309.55115161,0.00027405,2]
[322696891,1713222638754,-408.25460692,0.00027405,2]
[322696893,1713222638763,-309.56660676,0.00027405,2]
[322696895,1713222638773,-243.11397292,0.00027406,2]
[322696897,1713222638782,-5791.45874465,0.00027406,2]
[322696900,1713222638791,-511.12360975,0.000275,17]
[322696901,1713222638800,-166.666666,0.00028038,2]
[322696903,1713222638809,-2124.60141988,0.00028676,2]
[322696906,1713222638819,-602.31021043,0.00028676,2]
[322696908,1713222638829,-361.42917162,0.00028676,2]
[322696910,1713222638838,-888.05887897,0.00028676,2]
[322696912,1713222638847,-154.87609912,0.00028676,2]
[322696914,1713222638856,-880.8735514,0.00028677,2]
[322696916,1713222638865,-525.49067281,0.00028677,2]
[322696918,1713222638874,-470.72269089,0.00028677,2]
[322696920,1713222638883,-236.30551311,0.00028677,2]
[322696922,1713222638894,-154.87609912,0.00028678,2]
[322696923,1713222638903,-467.57706084,0.00028678,2]
[322696925,1713222638913,-172.97629238,0.00028678,2]
[322696928,1713222638922,-166.666666,0.00028679,2]
[322696930,1713222638931,-2619.93201651,0.00028769,2]
[322696932,1713222638941,-7855.0254148,0.00028769,2]
[322696934,1713222638950,-3637.47569067,0.0002877,2]
[322696936,1713222638959,-1355.53989205,0.00028855,2]
[322696938,1713222638968,-1114.95070655,0.00028866,4]
[322696940,1713222638977,-2599.68151758,0.000289,2]
[322696942,1713222638986,-587.0,0.00028996,2]
[322696944,1713222638995,-216.09314923,0.00029027,2]
[322696945,1713222639005,-2096.03028856,0.00029027,2]
[322696947,1713222639015,-1685.47611618,0.00029027,2]
[322696949,1713222639026,-166.666666,0.00029321,2]
[322696951,1713222639035,-150.8642222,0.00029534,2]
[322696953,1713222639044,-587.0,0.00029876,2]
[322696955,1713222639054,-166.666666,0.00029962,2]
[322696958,1713222639063,-1113.638203,0.00029999,2]
[322696959,1713222639072,-1242.51023488,0.0003,4]
[322696961,1713222639081,-284.71965956,0.0003,4]
[322696963,1713222639093,-280.0,0.0003,2]
[322696966,1713222639102,-154.87609912,0.00030033,4]
[322696968,1713222639111,-154.87609912,0.00030033,2]
[322696970,1713222639120,-154.87609912,0.00030034,4]
[322696972,1713222639130,-154.35921712,0.00030035,2]
[322696973,1713222639140,-3702.376339,0.00030123,2]
[322696976,1713222639150,-319.52788248,0.00030132,2]
[322696978,1713222639159,-2607.43936951,0.00030132,4]
[322696979,1713222639169,-1000.0,0.00030133,2]
[322696982,1713222639179,-167.25144684,0.00030134,4]
[322696984,1713222639189,-385.99363619,0.00030134,4]
[322696986,1713222639198,-2597.91326491,0.00030134,4]
[322696988,1713222639207,-636.77771421,0.00030134,4]
[322696990,1713222639216,-1201.99674644,0.00030134,4]
[322696991,1713222639225,-314.9984816,0.00030134,4]
[322696993,1713222639234,-186.3405975,0.00030134,4]
[322696995,1713222639243,-79356.17402176,0.00030134,4]
[322696997,1713222639252,-386.58136794,0.00030134,4]
[322696999,1713222639261,-249.52050691,0.00030134,4]
[322697000,1713222639270,-162.10762293,0.00030134,4]
[322697001,1713222639279,-1999.12720797,0.00030134,4]
[322697002,1713222639288,-1672.97193962,0.00030134,4]
[322697003,1713222639297,-1339.759654,0.00030134,4]
[322697004,1713222639306,-284.46264161,0.00030134,4]
[322697005,1713222639315,-2697.38915023,0.00030134,4]
[322697006,1713222639323,-309.48926925,0.00030134,4]
[322697007,1713222639337,-1259.49807677,0.00030134,4]
[322697008,1713222639350,-379.89974915,0.00030134,4]
[322697009,1713222639363,-408.76880317,0.00030134,4]
[322697010,1713222639374,-5025.95416381,0.00030134,4]
[322697011,1713222639385,-757.25592288,0.00030134,4]
[322697012,1713222639398,-278.86307224,0.00030134,4]
[322697013,1713222639410,-500.0,0.00030135,2]
[322697014,1713222639423,-500.0,0.00030135,2]
[322697015,1713222639436,-500.0,0.00030135,2]
[322697016,1713222639447,-500.0,0.00030135,2]
[322697017,1713222639458,-500.0,0.00030135,2]
[322697018,1713222639471,-500.0,0.00030135,2]
[322697019,1713222639483,-348.1823643,0.00030135,2]
[322697020,1713222639495,-462.62527295,0.00030135,2]
[322697021,1713222639506,-262.11142924,0.00030135,2]
[322697022,1713222639518,-500.0,0.00030135,2]
[322697023,1713222639531,-500.0,0.00030135,2]
[322697024,1713222639543,-389.18300102,0.00030135,2]
[322697025,1713222639553,-500.0,0.00030135,2]
[322697026,1713222639564,-500.0,0.00030135,2]
[322697027,1713222639578,-329.86387603,0.00030135,2]
[322697028,1713222639589,-500.0,0.00030135,2]
[322697029,1713222639603,-289.52388935,0.00030135,2]
[322697030,1713222639614,-500.0,0.00030135,2]
[322697031,1713222639625,-500.0,0.00030135,2]
[322697032,1713222639636,-500.0,0.00030135,2]
[322697033,1713222639648,-500.0,0.00030135,2]
[322697034,1713222639661,-500.0,0.00030135,2]
[322697035,1713222639672,-500.0,0.00030135,2]
[322697036,1713222639685,-263.43754654,0.00030136,2]
[322697037,1713222639697,-1014.5211511,0.00030136,4]
[322697038,1713222639710,-504.88526204,0.00030136,2]
[322697039,1713222639723,-500.0,0.00030136,2]
[322697040,1713222639735,-154.76784823,0.00030136,2]
[322697041,1713222639745,-509.65141509,0.00030136,2]
[322697042,1713222639755,-501.25342993,0.00030136,2]
[322697043,1713222639765,-379.55339058,0.00030136,2]
[322697044,1713222639777,-500.0,0.00030136,2]
[322697045,1713222639788,-500.0,0.00030136,2]
[322697046,1713222639800,-500.0,0.00030136,2]
[322697048,1713222639812,-500.0,0.00030136,2]
[322697049,1713222639825,-500.0,0.00030136,2]
[322697050,1713222639837,-500.0,0.00030136,2]
[322697051,1713222639848,-500.0,0.00030136,2]
[322697052,1713222639858,-500.0,0.00030136,2]
[322697053,1713222639869,-500.0,0.00030136,2]
[322697054,1713222639879,-500.0,0.00030136,2]
[322697055,1713222639890,-500.0,0.00030136,2]
[322697056,1713222639902,-528.56970342,0.00030136,2]
[322697057,1713222639914,-500.0,0.00030136,2]
[322697058,1713222639925,-342.9007668,0.00030136,2]
[322697059,1713222639937,-500.0,0.00030136,2]
[322697060,1713222639947,-500.0,0.00030136,2]
[322697061,1713222639958,-500.0,0.00030136,2]
[322697062,1713222639969,-500.0,0.00030136,2]
[322697063,1713222639980,-500.0,0.00030136,2]
[322697064,1713222639990,-502.62058759,0.00030136,2]
[322697065,1713222640001,-500.0,0.00030136,2]
[322697066,1713222640011,-500.0,0.00030136,2]
[322697067,1713222640025,-500.0,0.00030136,2]
[322697068,1713222640036,-500.0,0.00030136,2]
[322697069,1713222640047,-500.0,0.00030136,2]
[322697070,1713222640059,-500.62243868,0.00030136,2]
[322697071,1713222640069,-500.0,0.00030136,2]
[322697072,1713222640079,-500.0,0.00030136,2]
[322697073,1713222640091,-500.0,0.00030136,2]
[322697074,1713222640101,-505.00324321,0.00030136,2]
[322697075,1713222640112,-500.0,0.00030136,2]
[322697076,1713222640122,-500.0,0.00030136,2]
[322697077,1713222640132,-585.92229088,0.00030136,2]
[322697078,1713222640143,-500.0,0.00030136,2]
[322697079,1713222640154,-500.0,0.00030136,2]
[322697080,1713222640164,-500.0,0.00030136,2]
[322697081,1713222640174,-500.0,0.00030136,2]
[322697082,1713222640186,-1187.57,0.00030136,2]
[322697083,1713222640197,-500.0,0.00030136,2]
[322697084,1713222640207,-500.0,0.00030136,2]
[322697085,1713222640218,-500.96575619,0.00030136,2]
[322697086,1713222640228,-500.0,0.00030136,2]
[322697087,1713222640239,-500.0,0.00030136,2]
[322697088,1713222640249,-500.0,0.00030136,2]
[322697089,1713222640259,-500.0,0.00030136,2]
[322697090,1713222640270,-501.93797411,0.00030136,2]
[322697091,1713222640281,-503.32441188,0.00030136,2]
[322697092,1713222640291,-500.0,0.00030136,2]
[322697093,1713222640301,-177.53162993,0.00030136,2]
[322697094,1713222640312,-500.0,0.00030136,2]
[322697095,1713222640322,-500.0,0.00030136,2]
[322697096,1713222640333,-500.0,0.00030136,2]
[322697097,1713222640345,-500.0,0.00030136,2]
[322697098,1713222640356,-500.0,0.00030136,2]
[322697099,1713222640367,-500.0,0.00030136,2]
[322697100,1713222640377,-310.41617973,0.00030136,2]
[322697101,1713222640388,-500.0,0.00030136,2]
[322697102,1713222640398,-500.0,0.00030136,2]
[322697103,1713222640409,-500.0,0.00030136,2]
[322697104,1713222640422,-500.0,0.00030136,2]
[322697105,1713222640432,-609.49,0.00030136,2]
[322697106,1713222640444,-500.0,0.00030136,2]
[322697107,1713222640455,-500.0,0.00030136,2]
[322697108,1713222640465,-500.0,0.00030136,2]
[322697109,1713222640476,-629.1,0.00030136,2]
[322697111,1713222640487,-510.41384822,0.00030136,2]
[322697113,1713222640498,-551.33761884,0.00030136,2]
[322697115,1713222640509,-500.0,0.00030136,2]
[322697116,1713222640520,-500.0,0.00030136,2]
[322697117,1713222640531,-500.0,0.00030136,2]
[322697118,1713222640542,-512.8,0.00030136,2]
[322697119,1713222640552,-500.0,0.00030136,2]
[322697120,1713222640564,-500.0,0.00030136,2]
[322697121,1713222640575,-500.0,0.00030136,2]
[322697122,1713222640586,-500.0,0.00030136,2]
[322697123,1713222640597,-500.0,0.00030136,2]
[322697124,1713222640606,-500.0,0.00030136,2]
[322697125,1713222640616,-602.80168772,0.00030136,2]
[322697126,1713222640625,-500.0,0.00030136,2]
[322697127,1713222640793,-737.39,0.00030136,2]
[322697128,1713222640806,-500.0,0.00030136,2]
[322697129,1713222640815,-1437.35,0.00030136,2]
[322697130,1713222640825,-512.14031503,0.00030136,2]
[322697131,1713222640834,-500.0,0.00030136,2]
[322697132,1713222640843,-500.0,0.00030136,2]
[322697133,1713222640852,-500.0,0.00030136,2]
[322697134,1713222640861,-500.0,0.00030136,2]
[322697135,1713222640870,-566.27,0.00030136,2]
[322697136,1713222640879,-500.0,0.00030136,2]
[322697137,1713222640889,-846.83,0.00030136,2]
[322697138,1713222640898,-886.48,0.00030136,2]
[322697139,1713222640907,-500.0,0.00030136,2]
[322697140,1713222640919,-500.0,0.00030136,2]
[322697141,1713222640927,-271.31030546,0.00030136,2]
[322697142,1713222640936,-500.0,0.00030136,2]
[322697143,1713222640946,-500.0,0.00030136,2]
[322697144,1713222640955,-500.0,0.00030136,2]
[322697145,1713222640964,-500.0,0.00030136,2]
[322697146,1713222640974,-500.0,0.00030136,2]
[322697147,1713222640983,-500.0,0.00030136,2]
[322697148,1713222640992,-500.0,0.00030136,2]
[322697149,1713222641001,-769.54,0.00030136,2]
[322697150,1713222641011,-500.0,0.00030136,2]
[322697151,1713222641023,-500.0,0.00030136,2]
[322697152,1713222641033,-555.31881766,0.00030136,2]
[322697153,1713222641042,-500.0,0.00030136,2]
[322697154,1713222641051,-501.72738684,0.00030136,2]
[322697155,1713222641062,-500.0,0.00030136,2]
[322697156,1713222641071,-562.94,0.00030136,2]
[322697157,1713222641080,-262.16571509,0.00030136,2]
[322697158,1713222641089,-500.0,0.00030136,2]
[322697159,1713222641098,-500.0,0.00030136,2]
[322697160,1713222641112,-500.0,0.00030136,2]
[322697161,1713222641122,-500.0,0.00030136,2]
[322697162,1713222641132,-500.0,0.00030136,2]
[322697163,1713222641142,-500.0,0.00030136,2]
[322697164,1713222641151,-500.0,0.00030136,2]
[322697165,1713222641160,-500.0,0.00030136,2]
[322697166,1713222641170,-500.0,0.00030136,2]
[322697167,1713222641180,-500.0,0.00030136,2]
[322697168,1713222641189,-500.0,0.00030136,2]
[322697169,1713222641200,-500.0,0.00030136,2]
[322697170,1713222641209,-500.0,0.00030136,2]
[322697171,1713222641219,-500.0,0.00030136,2]
[322697172,1713222641228,-500.0,0.00030136,2]
[322697173,1713222641237,-500.0,0.00030136,2]
[322697174,1713222641246,-500.0,0.00030136,2]
[322697175,1713222641255,-500.0,0.00030136,2]
[322697176,1713222641264,-500.0,0.00030136,2]
[322697177,1713222641273,-500.0,0.00030136,2]
[322697178,1713222641282,-500.0,0.00030136,2]
[322697179,1713222641292,-300.0,0.00030136,2]
[322697180,1713222641301,-500.0,0.00030136,2]
[322697181,1713222641310,-501.65158682,0.00030136,2]
[322697182,1713222641319,-500.0,0.00030136,2]
[322697183,1713222641328,-500.0,0.00030136,2]
[322697184,1713222641338,-500.0,0.00030136,2]
[322697185,1713222641347,-261.11522902,0.00030136,2]
[322697186,1713222641356,-500.0,0.00030136,2]
[322697187,1713222641365,-500.0,0.00030136,2]
[322697188,1713222641374,-500.0,0.00030136,2]
[322697189,1713222641384,-500.0,0.00030136,2]
[322697190,1713222641393,-500.0,0.00030136,2]
[322697191,1713222641402,-500.0,0.00030136,2]
[322697192,1713222641411,-500.0,0.00030136,2]
[322697193,1713222641421,-500.0,0.00030136,2]
[322697194,1713222641430,-736.83,0.00030136,2]
[322697195,1713222641439,-500.0,0.00030136,2]
[322697196,1713222641448,-500.48828616,0.00030136,2]
[322697197,1713222641457,-500.0,0.00030136,2]
[322697198,1713222641465,-500.0,0.00030136,2]
[322697199,1713222641474,-500.0,0.00030136,2]
[322697200,1713222641483,-500.0,0.00030136,2]
[322697201,1713222641492,-500.0,0.00030136,2]
[322697202,1713222641501,-500.0,0.00030136,2]
[322697203,1713222641511,-500.0,0.00030136,2]
[322697204,1713222641520,-500.0,0.00030136,2]
[322697205,1713222641530,-566.27547528,0.00030136,2]
[322697206,1713222641539,-500.0,0.00030136,2]
[322697207,1713222641548,-500.0,0.00030136,2]
[322697209,1713222641557,-500.0,0.00030136,2]
[322697210,1713222641567,-500.0,0.00030136,2]
[322697212,1713222641576,-500.0,0.00030136,2]
[322697214,1713222641585,-500.0,0.00030136,2]
[322697216,1713222641595,-500.0,0.00030136,2]
[322697217,1713222641604,-500.0,0.00030136,2]
[322697219,1713222641614,-500.0,0.00030136,2]
[322697220,1713222641623,-500.0,0.00030136,2]
[322697221,1713222641632,-500.0,0.00030136,2]
[322697222,1713222641641,-573.41984339,0.00030136,2]
[322697223,1713222641651,-710.12,0.00030136,2]
[322697224,1713222641660,-500.0,0.00030136,2]
[322697225,1713222641670,-500.0,0.00030136,2]
[322697226,1713222641680,-504.42427962,0.00030136,2]
[322697227,1713222641689,-1114.15,0.00030136,2]
[322697228,1713222641698,-500.0,0.00030136,2]
[322697229,1713222641707,-7430.81,0.00030136,2]
[322697230,1713222641716,-3446.38,0.00030136,2]
[322697231,1713222641726,-523.83,0.00030136,2]
[322697232,1713222641735,-500.0,0.00030136,2]
[322697233,1713222641745,-500.0,0.00030136,2]
[322697234,1713222641754,-614.77,0.00030136,2]
[322697235,1713222641763,-590.78,0.00030136,2]
[322697236,1713222641772,-500.0,0.00030136,2]
[322697237,1713222641782,-500.0,0.00030136,2]
[322697238,1713222641791,-500.0,0.00030136,2]
[322697239,1713222641800,-500.0,0.00030136,2]
[322697240,1713222641810,-500.0,0.00030136,2]
[322697241,1713222641819,-1652.63,0.00030136,2]
[322697242,1713222641828,-500.0,0.00030136,2]
[322697243,1713222641838,-456.80100492,0.00030136,2]
[322697244,1713222641846,-500.0,0.00030136,2]
[322697245,1713222641855,-821.12,0.00030136,2]
[322697246,1713222641865,-500.0,0.00030136,2]
[322697247,1713222641874,-500.0,0.00030136,2]
[322697248,1713222641883,-500.0,0.00030136,2]
[322697249,1713222641892,-730.64,0.00030136,2]
[322697250,1713222641901,-500.0,0.00030136,2]
[322697251,1713222641910,-500.0,0.00030136,2]
[322697252,1713222641921,-355.85470156,0.00030136,2]
[322697253,1713222641930,-500.0,0.00030136,2]
[322697254,1713222641940,-500.0,0.00030136,2]
[322697255,1713222641949,-500.0,0.00030136,2]
[322697256,1713222641958,-500.0,0.00030136,2]
[322697257,1713222641967,-12837.64,0.00030136,2]
[322697258,1713222641977,-500.0,0.00030136,2]
[322697259,1713222641986,-317.93654528,0.00030136,2]
[322697260,1713222641995,-500.0,0.00030136,2]
[322697261,1713222642004,-510.66,0.00030136,2]